bitfinex/quotes_ETHUSD_20250314
["timestamp","ask_amount","ask_price","bid_price","bid_amount"]
[1741937416123,4.935,1895.4,1895.3,5.2762]
[1741937416317,4.944,1895.7,1895.4,5.27567]
[1741937416546,4.944,1895.7,1895.6,5.27537]
[1741937416849,4.944,1895.7,1895.4,0.783]
[1741937417026,4.944,1895.7,1895.4,6.05893]
[1741937417227,5.48768,1895.7,1895.1,6.05954]
[1741937417458,0.7955,1895.5,1894.8,6.873]
[1741937417755,0.7955,1895.5,1895.2,0.08866585]
[1741937417944,0.7955,1895.5,1895.1,5.27655]
[1741937418142,0.7955,1895.5,1895.3,0.08923631]
[1741937418344,0.7955,1895.5,1895.2,0.08932546]
[1741937418345,1.402604,1895.5,1895.2,0.08932546]
[1741937418543,4.944,1895.7,1895.3,5.2762]
[1741937418742,4.944,1895.7,1895.3,10.64125438]
[1741937418955,4.944,1895.7,1895.4,5.2758]
[1741937419250,4.944,1895.7,1895.4,5.36485332]
[1741937419668,4.944,1895.7,1895.5,5.27562]
[1741937419826,4.944,1895.7,1895.6,0.08977311]
[1741937420155,4.944,1895.7,1895.6,5.36514311]
[1741937420357,4.944,1895.7,1895.6,0.08977311]
[1741937421454,0.7865,1895.9,1895.6,0.08977311]
[1741937421660,4.963,1895.9,1895.7,5.27497]
[1741937422020,11.03383,1895.9,1895.8,0.0895768]
[1741937422227,11.03383,1895.9,1895.5,6.07917]
[1741937422427,11.03383,1895.9,1895.6,0.08926343]
[1741937423159,6.02796,1895.8,1895.6,0.08926343]
[1741937423476,6.02796,1895.8,1895.7,0.08919239]
[1741937423629,2.459279,1895.8,1895.7,0.08919239]
[1741937423829,2.459279,1895.8,1895.5,5.27563]
[1741937424056,2.459279,1895.8,1895.6,0.08926343]
[1741937424355,2.459279,1895.8,1895.6,5.36460343]
[1741937424538,5.7593,1895.9,1895.6,10.63981343]
[1741937424859,4.96,1895.8,1895.6,6.15887343]
[1741937425029,4.96,1895.8,1895.7,5.27507]
[1741937425362,4.96,1895.8,1895.7,5.36426239]
[1741937425578,4.959,1896.0,1895.8,5.27471]
[1741937425773,4.959,1896.0,1895.9,5.27441]
[1741937426064,17.437,1896.2,1896.0,5.27418]
[1741937426223,4.959,1896.1,1896.0,5.27418]
[1741937427863,4.959,1896.1,1896.0,6.408759]
[1741937428261,4.958,1896.3,1896.2,5.2737]
[1741937429863,0.8186,1896.2,1895.6,7.91964318]
[1741937430157,0.8186,1896.0,1895.6,5.27535]
[1741937430366,4.97,1895.9,1895.6,5.27535]
[1741937430564,5.27523,1895.7,1895.3,5.27595]
[1741937431561,10.55054,1895.7,1895.3,5.27595]
[1741937432265,5.27523,1895.7,1895.3,5.27595]
[1741937432474,10.55047,1895.7,1895.3,5.27595]
[1741937432678,1.055047,1895.6,1895.3,5.27595]
[1741937432968,4.973,1895.5,1895.3,5.27595]
[1741937436463,4.973,1895.5,1895.3,6.04595]
[1741937436647,4.973,1895.5,1895.4,5.27593]
[1741937437282,4.973,1895.5,1895.3,5.27616]
[1741937437459,4.973,1895.5,1895.4,0.08049025]
[1741937437943,4.973,1895.5,1895.4,5.35642025]
[1741937439880,4.973,1895.5,1895.4,0.08049025]
[1741937441771,4.973,1895.5,1895.4,5.35642025]
[1741937441970,4.971,1895.5,1895.4,5.35642025]
[1741937442281,4.971,1895.5,1895.4,0.08049025]
[1741937444783,3.7693,1895.8,1895.4,5.35642025]
[1741937444987,4.968,1895.7,1895.5,5.27554]
[1741937445199,4.968,1895.7,1895.5,0.08092426]
[1741937445483,9.04415,1895.8,1895.5,0.08092426]
[1741937445775,4.967,1895.6,1895.5,0.08092426]
[1741937445983,10.24237,1895.6,1895.5,0.08092426]
[1741937446184,10.24237,1895.6,1895.3,5.27618]
[1741937446351,4.967,1895.6,1895.5,0.08092426]
[1741937446550,4.967,1895.6,1895.4,0.08099532]
[1741937446782,4.967,1895.6,1895.5,0.08092426]
[1741937447081,4.967,1895.6,1895.3,5.27618]
[1741937447261,10.24239,1895.6,1895.4,0.08099532]
[1741937447447,1.024239,1895.5,1895.2,0.8128]
[1741937447647,4.967,1895.6,1895.3,5.35707638]
[1741937447849,4.967,1895.6,1895.3,0.08106638]
[1741937448096,4.967,1895.6,1895.3,5.27609]
[1741937448293,4.967,1895.6,1895.4,0.08099532]
[1741937449404,4.967,1895.6,1895.4,5.35690532]
[1741937451001,4.967,1895.6,1895.4,0.08099532]
[1741937452199,5.991218,1895.6,1895.4,0.08099532]
[1741937452374,4.967,1895.6,1895.4,0.08099532]
[1741937452573,4.967,1895.6,1895.4,5.35678532]
[1741937452786,4.967,1895.6,1895.4,10.63256532]
[1741937453098,8.27484,1895.8,1895.5,0.7657]
[1741937453259,4.96,1895.6,1895.5,0.7657]
[1741937453660,4.96,1895.6,1895.5,0.84718345]
[1741937454103,3.0,1895.8,1895.5,0.84718345]
[1741937454399,4.959,1895.7,1895.6,5.2751]
[1741937454585,4.959,1895.7,1895.5,6.12274345]
[1741937454771,4.959,1895.7,1895.6,5.3567824]
[1741937454972,3.0,1895.8,1895.6,5.3567824]
[1741937455188,7.957,1895.8,1895.6,5.3567824]
[1741937455703,23.49479,1896.1,1895.6,1.22121664]
[1741937455870,4.957,1895.8,1895.7,10.54974]
[1741937456075,4.957,1895.8,1895.7,11.44682801]
[1741937456691,17.452,1896.1,1895.7,6.17194801]
[1741937456865,4.958,1896.0,1895.9,5.27453]
[1741937457215,4.958,1896.0,1895.9,7.23734285]
[1741937459714,4.958,1896.0,1895.9,6.18243085]
[1741937460514,8.2729,1896.5,1896.1,5.27398]
[1741937460515,4.954,1896.2,1896.1,5.27398]
[1741937460682,5.27271,1896.6,1896.2,5.27363]
[1741937460887,4.955,1896.5,1896.3,5.35354957]
[1741937461089,4.955,1896.5,1896.3,0.08013957]
[1741937463689,10.22792,1896.5,1896.3,0.08013957]
[1741937464932,4.955,1896.5,1896.3,0.08013957]
[1741937467913,4.955,1896.5,1896.3,5.35352957]
[1741937468116,4.955,1896.5,1896.3,0.08013957]
[1741937468416,6.0832262,1896.5,1896.3,0.08013957]
[1741937468998,11.3561562,1896.5,1896.3,0.08013957]
[1741937469199,6.4011562,1896.5,1896.3,0.08013957]
[1741937469420,4.945,1896.4,1896.3,0.08013957]
[1741937471425,5.27346,1896.3,1896.0,0.8297]
[1741937471792,5.27346,1896.3,1895.9,5.27438]
[1741937472712,5.27346,1896.3,1895.9,10.54873]
[1741937473720,5.27346,1896.3,1896.0,5.27425]
[1741937473910,10.99454,1896.4,1896.0,5.27425]
[1741937474110,12.73410362,1896.4,1896.0,5.27425]
[1741937475224,7.46096362,1896.4,1895.8,6.0916]
[1741937475411,5.27457,1895.9,1895.6,0.7812]
[1741937475720,10.22057,1895.9,1895.5,5.27564]
[1741937476425,10.22057,1895.9,1895.5,10.55111]
[1741937476930,10.22057,1895.9,1895.6,5.27531]
[1741937477234,4.946,1895.9,1895.6,6.04688]
[1741937477527,4.946,1895.9,1895.8,5.27481]
[1741937478131,4.946,1896.0,1895.9,5.27453]
[1741937478996,4.948,1896.2,1896.0,5.27399]
[1741937479596,4.948,1896.2,1896.0,10.54809]
[1741937479798,4.948,1896.2,1896.0,5.27399]
[1741937479998,4.948,1896.2,1896.0,10.54812]
[1741937480799,4.948,1896.2,1896.1,5.27398]
[1741937481000,4.948,1896.2,1896.0,5.27399]
[1741937482548,4.948,1896.2,1896.1,0.07711473]
[1741937484259,4.948,1896.2,1895.9,6.05081]
[1741937484732,4.948,1896.2,1896.0,0.07718574]
[1741937485249,4.948,1896.2,1896.0,5.35143574]
[1741937485621,4.948,1896.2,1896.0,0.07718574]
[1741937490249,12.05067,1896.2,1896.0,0.07718574]
[1741937490532,6.04449,1896.0,1895.6,5.2752]
[1741937491333,5.27457,1895.9,1895.5,10.55111]
[1741937491507,5.27457,1895.9,1895.5,5.27547]
[1741937491508,4.946,1895.8,1895.5,5.27547]
[1741937492238,4.946,1895.8,1895.6,5.27535]
[1741937492407,4.946,1895.8,1895.6,5.27522]
[1741937493204,4.946,1895.8,1895.7,5.27509]
[1741937494245,4.946,1895.8,1895.6,5.27522]
[1741937494535,4.946,1895.8,1895.6,10.55044]
[1741937494731,4.946,1895.8,1895.7,5.27509]
[1741937497622,4.946,1895.8,1895.7,5.35289398]
[1741937498153,1.02215,1896.2,1895.9,5.27443]
[1741937498320,4.943,1896.1,1895.9,5.27443]
[1741937498515,4.943,1896.1,1896.0,0.07759091]
[1741937498827,4.943,1896.1,1896.0,5.35185091]
[1741937501334,4.948,1896.3,1896.2,5.27369]
[1741937501517,4.948,1896.3,1896.2,5.35105781]
[1741937501719,22.72314,1896.8,1896.2,0.07736781]
[1741937502024,18.534634,1896.7,1896.3,5.27342]
[1741937502234,5.27259,1896.6,1896.2,5.35105781]
[1741937502433,5.27259,1896.6,1896.4,0.07716281]
[1741937502727,5.27259,1896.6,1896.5,0.07709183]
[1741937503033,5.27259,1896.6,1896.2,10.54723]
[1741937503236,5.27259,1896.6,1896.5,0.07709183]
[1741937503424,7.1260614,1896.6,1896.2,5.27354]
[1741937503755,7.1260614,1896.6,1896.2,5.27369]
[1741937503955,7.1260614,1896.6,1896.3,0.0772338]
[1741937504749,1.8534714,1896.6,1896.3,0.0772338]
[1741937504957,0.7524,1896.4,1896.1,5.27395]
[1741937505457,0.7524,1896.4,1896.1,10.54775]
[1741937505627,0.7524,1896.4,1896.1,5.2738]
[1741937505829,0.7524,1896.4,1896.1,10.54761]
[1741937506550,6.04937,1896.6,1896.2,5.27367]
[1741937506779,0.7767,1896.6,1896.3,5.27317]
[1741937507135,0.7767,1896.6,1896.2,6.08668]
[1741937507335,7.3763254,1896.6,1896.2,5.27368]
[1741937507854,12.6491354,1896.6,1896.2,5.27368]
[1741937508057,5.27287,1896.5,1896.2,5.27368]
[1741937508364,5.27287,1896.5,1896.1,5.2739]
[1741937508524,5.27287,1896.5,1896.1,5.27379]
[1741937510159,5.27287,1896.5,1896.2,5.27367]
[1741937510857,6.04939,1896.6,1896.2,10.54725]
[1741937511022,0.7767,1896.6,1896.2,1.054725]
[1741937511227,4.938,1896.5,1896.3,5.2732]
[1741937511957,4.938,1896.5,1896.1,5.27389]
[1741937512138,10.211,1896.5,1896.1,5.27389]
[1741937512547,10.211,1896.5,1896.2,0.07696273]
[1741937512934,5.27342,1896.3,1896.2,0.07696273]
[1741937513132,5.27342,1896.3,1895.9,5.27441]
[1741937513133,0.8236,1896.3,1896.0,5.27419]
[1741937513340,0.8236,1896.3,1896.1,0.07703373]
[1741937514127,0.7956,1896.4,1896.1,5.35089373]
[1741937514329,6.06885,1896.4,1896.1,0.07703373]
[1741937514529,6.06885,1896.4,1896.1,5.35098373]
[1741937515254,0.7956,1896.4,1896.1,5.35085373]
[1741937515427,6.06884,1896.4,1896.1,0.07703373]
[1741937515631,4.938,1896.5,1896.2,5.27356]
[1741937516029,4.938,1896.5,1896.3,0.07689173]
[1741937517054,4.938,1896.5,1896.3,5.35027173]
[1741937517255,4.938,1896.5,1896.3,5.35015173]
[1741937518948,10.95,1896.6,1896.3,6.15197173]
[1741937519155,10.95,1896.6,1896.4,5.27304]
[1741937519358,13.95,1896.6,1896.5,0.07676776]
[1741937519533,7.93,1896.6,1896.5,0.07676776]
[1741937520868,4.933,1896.7,1896.5,0.07676776]
[1741937521161,10.20532,1896.7,1896.5,0.07676776]
[1741937521330,4.931,1896.7,1896.5,5.34952776]
[1741937521535,4.931,1896.7,1896.5,11.15721554]
[1741937521735,4.931,1896.7,1896.5,0.07676776]
[1741937521948,6.07962,1896.6,1896.2,5.27363]
[1741937522146,6.07962,1896.6,1896.3,0.07666674]
[1741937522663,0.8069,1896.6,1896.3,0.07666674]
[1741937522865,4.931,1896.7,1896.5,5.27287]
[1741937523171,4.931,1896.7,1896.6,0.07645379]
[1741937523469,11.31654,1896.9,1896.6,0.07645379]
[1741937523764,10.20505,1896.8,1896.7,0.07638283]
[1741937524242,10.20505,1896.8,1896.4,11.31255]
[1741937524442,4.933,1896.8,1896.7,0.07638283]
[1741937524647,10.20514,1896.8,1896.4,6.03951]
[1741937524867,10.20514,1896.8,1896.7,0.07638283]
[1741937525032,15.47737,1896.8,1896.4,6.03951]
[1741937525239,15.47737,1896.8,1896.7,0.07638283]
[1741937525448,5.27232,1896.7,1896.4,6.03951]
[1741937525939,5.27235,1896.7,1896.4,6.03951]
[1741937526258,5.27235,1896.7,1896.3,11.31298]
[1741937526460,5.27235,1896.7,1896.3,6.03959]
[1741937526971,5.27235,1896.7,1896.3,11.31284]
[1741937527135,5.27235,1896.7,1896.3,7.170734]
[1741937527567,5.27235,1896.7,1896.4,0.07645178]
[1741937527970,5.27235,1896.7,1896.3,7.170734]
[1741937528159,5.27235,1896.7,1896.5,0.0763808]
[1741937528361,5.27235,1896.7,1896.3,6.03945]
[1741937528662,5.27235,1896.7,1896.4,0.07645178]
[1741937529036,10.20514,1896.8,1896.4,5.27314]
[1741937529242,4.933,1896.8,1896.5,5.27268]
[1741937529438,4.933,1896.8,1896.5,5.3490608]
[1741937529663,0.7728,1896.9,1896.6,5.27256]
[1741937529864,5.6998,1896.9,1896.6,5.34886983]
[1741937530052,5.6998,1896.9,1896.6,10.62127983]
[1741937530053,4.927,1896.9,1896.6,10.62127983]
[1741937530375,17.446,1897.0,1896.6,1.21696781]
[1741937530674,10.54116,1897.4,1897.0,5.27132]
[1741937530841,4.932,1897.3,1897.0,10.5426]
[1741937531044,4.932,1897.3,1897.1,0.07595508]
[1741937531641,4.932,1897.3,1897.0,5.27147]
[1741937531842,4.932,1897.3,1897.2,0.07588415]
[1741937532068,4.932,1897.3,1897.1,5.34714508]
[1741937532282,4.932,1897.3,1897.2,0.07588415]
[1741937532458,0.7993,1897.5,1897.2,0.07588415]
[1741937532782,4.932,1897.3,1897.1,10.54227]
[1741937532942,4.934,1897.4,1897.1,11.7101291]
[1741937533548,4.934,1897.4,1897.1,6.4389391]
[1741937533855,4.934,1897.4,1897.1,5.27108]
[1741937534053,4.934,1897.4,1897.1,5.27106]
[1741937535078,4.934,1897.4,1897.2,5.27088]
[1741937535798,4.934,1897.4,1897.1,5.27106]
[1741937536157,4.934,1897.4,1897.1,10.54214]
[1741937538868,0.04,1897.9,1897.7,6.07003]
[1741937540389,11.0305,1898.1,1897.7,6.07003]
[1741937540894,0.8259,1898.1,1897.7,0.8006]
[1741937541191,4.932,1898.1,1897.8,5.26901]
[1741937541491,4.932,1898.1,1897.9,5.26883]
[1741937541696,4.932,1898.1,1897.8,5.26922]
[1741937541986,4.932,1898.1,1897.9,5.26891]
[1741937542597,4.932,1898.1,1898.0,0.07412958]
[1741937542893,4.931,1898.1,1898.0,0.07412958]
[1741937543187,17.44,1898.4,1898.1,5.26822]
[1741937543359,4.934,1898.3,1898.2,5.26814]
[1741937543560,4.934,1898.3,1898.2,0.07398786]
[1741937543767,4.934,1898.3,1898.1,5.26842]
[1741937543975,4.934,1898.3,1898.2,0.07398786]
[1741937544318,4.934,1898.3,1898.1,5.26842]
[1741937544459,4.934,1898.3,1898.2,0.07398786]
[1741937544654,22.374,1898.4,1898.2,5.34200786]
[1741937544856,3.0,1898.5,1898.3,5.26787]
[1741937545391,3.0,1898.5,1898.4,0.0731451]
[1741937546402,0.7819,1898.8,1898.5,5.26731]
[1741937546703,4.935,1898.7,1898.4,5.3406851]
[1741937546913,4.935,1898.7,1898.6,0.07298548]
[1741937547078,4.935,1898.7,1898.5,0.0730563]
[1741937547399,4.935,1898.7,1898.6,0.07298548]
[1741937547602,0.7819,1898.8,1898.6,0.07298548]
[1741937547808,4.937,1898.7,1898.6,5.26697]
[1741937548110,4.937,1898.7,1898.5,5.2673]
[1741937548278,3.0,1898.9,1898.6,6.06641]
[1741937548482,4.937,1898.8,1898.6,6.06641]
[1741937549410,6.8433,1899.2,1898.9,5.26604]
[1741937549709,11.7823,1899.2,1899.0,5.26588]
[1741937549883,5.7623,1899.2,1899.0,5.26588]
[1741937550284,4.939,1899.2,1899.0,5.26578]
[1741937550621,4.939,1899.2,1899.0,10.53151]
[1741937550908,6.0832,1899.4,1899.1,5.26565]
[1741937550909,4.941,1899.3,1899.1,5.26565]
[1741937551839,4.941,1899.3,1898.9,6.05768]
[1741937552000,4.941,1899.3,1899.0,5.2659]
[1741937552197,4.941,1899.3,1899.0,5.26576]
[1741937553318,4.941,1899.3,1898.9,0.7915]
[1741937553468,9.08574909,1899.1,1898.7,5.26673]
[1741937553982,6.08801,1899.1,1898.7,5.26673]
[1741937555005,11.35387,1899.1,1898.7,5.26673]
[1741937555205,5.26604,1899.0,1898.6,5.26678]
[1741937555502,6.08801,1899.1,1898.6,5.26678]
[1741937555503,6.08801,1899.1,1898.7,5.26663]
[1741937555901,11.35386,1899.1,1898.7,5.26663]
[1741937556207,0.8222,1899.1,1898.8,5.2663]
[1741937556698,6.08787,1899.1,1898.7,5.26674]
[1741937556903,6.08787,1899.1,1898.7,10.5333]
[1741937557314,6.08787,1899.1,1898.7,5.26656]
[1741937557671,6.08787,1899.1,1898.8,0.06835061]
[1741937557867,5.26596,1899.0,1898.8,0.06835061]
[1741937558077,6.08787,1899.1,1898.8,0.06835061]
[1741937558982,0.8222,1899.1,1898.8,5.33481061]
[1741937559182,4.941,1899.0,1898.9,5.26617]
[1741937559379,4.941,1899.0,1898.9,0.06827981]
[1741937560205,4.941,1899.0,1898.7,5.26668]
[1741937560409,4.941,1899.0,1898.9,0.06827981]
[1741937560707,4.941,1899.0,1898.8,0.06835061]
[1741937560888,10.20697,1899.0,1898.9,0.06827981]
[1741937561282,10.20697,1899.0,1898.7,5.26668]
[1741937561494,4.941,1899.0,1898.9,0.06827981]
[1741937561690,4.941,1899.0,1898.8,0.06835061]
[1741937562005,10.20692,1899.0,1898.9,0.06827981]
[1741937562583,10.97402,1899.0,1898.9,0.06827981]
[1741937562804,5.2662,1898.9,1898.6,0.7704]
[1741937564408,5.2662,1898.9,1898.6,6.03741]
[1741937564607,10.97405,1899.0,1898.6,11.30432]
[1741937564813,10.97405,1899.0,1898.6,6.03731]
[1741937565015,5.7081,1899.0,1898.6,0.7704]
[1741937565311,4.94,1899.1,1898.9,5.26607]
[1741937565610,4.94,1899.1,1898.9,6.05667]
[1741937565975,4.941,1899.1,1898.9,6.05667]
[1741937566298,4.941,1899.2,1899.0,5.26584]
[1741937566617,4.941,1899.2,1899.0,5.26581]
[1741937567024,9.01758,1899.4,1899.0,5.26592]
[1741937567025,0.7527,1899.4,1899.0,5.26592]
[1741937567202,4.941,1899.3,1899.0,5.26592]
[1741937567705,4.941,1899.3,1899.0,10.53184]
[1741937567907,4.941,1899.3,1899.0,11.7773144]
[1741937568107,4.941,1899.3,1899.1,5.26564]
[1741937568921,10.2061,1899.3,1899.0,6.5113944]
[1741937569126,6.0177,1899.4,1899.0,10.53172]
[1741937569420,4.939,1899.3,1899.0,10.53172]
[1741937569724,4.939,1899.3,1899.1,5.26562]
[1741937571417,4.939,1899.3,1899.1,5.26554]
[1741937571625,4.939,1899.3,1899.1,10.53102]
[1741937571823,4.937,1899.3,1899.2,0.7555]
[1741937572011,4.937,1899.3,1899.2,6.02087]
[1741937572508,4.937,1899.4,1899.2,6.08835393]
[1741937573100,4.937,1899.4,1899.2,5.33285393]
[1741937573315,4.937,1899.4,1899.2,0.06748393]
[1741937573929,4.937,1899.4,1899.2,5.33284393]
[1741937574331,4.937,1899.4,1899.2,0.06748393]
[1741937574532,5.26509,1899.3,1899.2,0.06748393]
[1741937574834,5.26509,1899.3,1898.9,6.02056]
[1741937575030,5.26509,1899.3,1899.2,0.06716989]
[1741937575539,5.26509,1899.3,1899.0,0.602056]
[1741937575735,5.26509,1899.3,1899.1,0.06724067]
[1741937575918,10.20191,1899.4,1899.1,0.06724067]
[1741937576316,4.937,1899.4,1899.1,5.33285067]
[1741937577140,10.20183,1899.4,1899.1,5.33285067]
[1741937578851,10.20183,1899.4,1899.1,0.06724067]
[1741937579836,10.20183,1899.4,1899.1,5.33281067]
[1741937580242,4.937,1899.4,1899.1,0.06724067]
[1741937580441,6.01628,1899.3,1899.1,0.06724067]
[1741937580744,6.01628,1899.3,1898.9,11.28663]
[1741937580933,6.01628,1899.3,1899.0,1.19331671]
[1741937581324,5.26544,1899.2,1899.0,1.19331671]
[1741937581842,6.01615,1899.3,1899.0,1.19331671]
[1741937583132,11.28144,1899.3,1899.0,1.19331671]
[1741937583424,6.01615,1899.3,1899.0,1.19331671]
[1741937585440,6.01615,1899.3,1899.0,0.06465371]
[1741937586051,11.28144,1899.3,1899.0,0.06465371]
[1741937586228,6.01615,1899.3,1899.0,0.06465371]
[1741937586415,5.26565,1899.1,1899.0,0.06465371]
[1741937586935,5.26549,1899.2,1899.0,0.06471643]
[1741937587136,5.26549,1899.2,1898.8,10.53279]
[1741937587338,5.26549,1899.2,1898.9,0.06478722]
[1741937589955,5.26567,1899.1,1898.9,0.06478722]
[1741937590156,5.26549,1899.2,1898.9,0.06478722]
[1741937590856,10.53112,1899.2,1898.9,0.06478722]
[1741937591178,5.26572,1899.1,1898.9,0.06478722]
[1741937591374,5.26549,1899.2,1898.9,0.06478722]
[1741937592579,10.53113,1899.2,1898.9,0.06478722]
[1741937592758,5.26549,1899.2,1898.9,0.06478722]
[1741937593746,5.26549,1899.2,1898.9,5.33096722]
[1741937593948,4.937,1899.4,1899.0,0.7505]
[1741937594179,4.937,1899.4,1899.1,5.33038652]
[1741937594352,12.05218,1899.5,1899.1,5.33038652]
[1741937594546,4.921,1899.3,1899.1,5.33038652]
[1741937594753,4.921,1899.3,1899.1,10.59593652]
[1741937594973,4.921,1899.3,1899.1,11.73058017]
[1741937595176,4.921,1899.3,1899.1,6.46499017]
[1741937595349,4.921,1899.3,1899.1,11.73053017]
[1741937595880,4.921,1899.3,1899.1,6.46499017]
[1741937607284,4.921,1899.3,1899.1,5.33034652]
[1741937609202,8.26435,1899.6,1899.2,5.26537]
[1741937609415,4.912,1899.5,1899.3,0.85198329]
[1741937609717,4.914,1899.5,1899.3,0.06468329]
[1741937610010,10.17856,1899.5,1899.3,0.06468329]
[1741937610811,0.8117,1899.4,1899.3,0.06468329]
[1741937611322,10.17756,1899.5,1899.2,5.26536]
[1741937611486,10.17756,1899.5,1899.3,0.06468329]
[1741937612793,4.913,1899.5,1899.3,0.06468329]
[1741937613694,4.913,1899.5,1899.3,11.12764262]
[1741937613911,4.913,1899.5,1899.3,5.86265262]
[1741937614612,4.913,1899.5,1899.3,11.12765262]
[1741937614922,5.26404,1899.7,1899.3,11.12765262]
[1741937615222,4.917,1899.5,1899.3,5.86265262]
[1741937615421,5.26404,1899.7,1899.4,0.58626526]
[1741937615634,4.916,1899.6,1899.3,11.12757262]
[1741937615921,4.916,1899.6,1899.5,0.06426401]
[1741937616086,4.916,1899.6,1899.4,0.06433477]
[1741937616291,4.916,1899.6,1899.5,0.06426401]
[1741937616718,4.916,1899.6,1899.3,11.06282933]
[1741937616924,4.916,1899.6,1899.5,0.06426401]
[1741937617126,4.916,1899.6,1899.4,5.32909477]
[1741937617322,4.916,1899.6,1899.5,0.06426401]
[1741937617691,4.914,1899.6,1899.5,0.06426401]
[1741937619027,4.914,1899.6,1899.3,6.60143933]
[1741937619226,4.914,1899.6,1899.4,0.06433477]
[1741937619453,4.914,1899.6,1899.4,5.26478]
[1741937619615,4.914,1899.6,1899.5,0.06426401]
[1741937620326,6.70724314,1899.6,1899.5,0.06426401]
[1741937620506,4.914,1899.6,1899.5,0.06426401]
[1741937620701,6.70724314,1899.6,1899.5,0.06426401]
[1741937621827,4.914,1899.6,1899.5,0.06426401]
[1741937622233,6.70724314,1899.6,1899.5,0.06426401]
[1741937622830,4.914,1899.6,1899.5,0.06426401]
[1741937624631,6.70724314,1899.6,1899.5,0.06426401]
[1741937629251,4.911,1899.8,1899.6,5.26426]
[1741937629406,6.70624314,1899.8,1899.6,5.26426]
[1741937629599,6.70624314,1899.8,1899.6,10.52841]
[1741937629803,6.70624314,1899.8,1899.7,0.06167742]
[1741937629999,6.70624314,1899.8,1899.6,5.26411]
[1741937630204,6.70624314,1899.8,1899.7,5.85206842]
[1741937631233,1.79324314,1899.8,1899.7,5.85206842]
[1741937631432,6.70524314,1899.9,1899.7,11.93510842]
[1741937632017,1.79324314,1899.8,1899.7,11.93510842]
[1741937632251,1.79324314,1899.8,1899.7,6.67112842]
[1741937632600,1.79324314,1899.8,1899.7,0.06167742]
[1741937632837,1.79324314,1899.8,1899.5,6.08441]
[1741937633040,1.79324314,1899.6,1899.5,6.08441]
[1741937633244,1.79324314,1899.6,1899.4,5.26479]
[1741937633535,1.79324314,1899.5,1899.4,5.26479]
[1741937634141,1.79324314,1899.5,1899.4,5.868959]
[1741937634306,1.79324314,1899.5,1899.3,6.04191]
[1741937634503,1.79324314,1899.4,1899.3,6.04191]
[1741937634826,1.79324314,1899.4,1899.3,0.7769]
[1741937635028,6.70524314,1899.5,1899.3,6.04199]
[1741937635218,2.62484314,1899.4,1899.0,6.07146]
[1741937635421,1.79324314,1899.2,1899.0,6.678496]
[1741937636339,9.08649828,1899.4,1899.0,6.678496]
[1741937637441,9.08649828,1899.4,1899.0,11.944176]
[1741937638226,9.08649828,1899.4,1899.0,11.944236]
[1741937639125,8.25551828,1899.2,1898.8,5.26632]
[1741937639325,4.913,1899.1,1898.8,5.26632]
[1741937641733,4.913,1899.1,1898.9,5.26614]
[1741937642308,4.913,1899.1,1898.9,10.53213]
[1741937642507,4.913,1899.1,1898.9,6.08419]
[1741937642928,4.913,1899.1,1898.9,0.8182]
[1741937643141,4.913,1899.1,1898.8,6.08462]
[1741937643347,4.913,1899.1,1898.8,7.219741]
[1741937644241,4.913,1899.1,1898.8,7.27240019]
[1741937644451,4.919,1899.1,1898.9,5.2662]
[1741937644750,4.919,1899.1,1899.0,5.26581]
[1741937645545,4.919,1899.1,1898.8,7.219561]
[1741937645768,4.919,1899.1,1898.9,0.7219561]
[1741937645928,4.919,1899.1,1898.9,5.9879761]
[1741937646257,4.57019722,1899.1,1898.9,5.9879761]
[1741937646554,4.57019722,1899.1,1898.9,11.2539961]
[1741937646759,4.57019722,1899.1,1899.0,6.05752]
[1741937646959,4.57019722,1899.1,1899.0,7.26206961]
[1741937647558,4.57019722,1899.1,1899.0,7.32068765]
[1741937648781,3.0,1899.5,1899.3,5.26509]
[1741937649076,4.918,1899.4,1899.2,6.04187]
[1741937650160,4.918,1899.4,1899.1,5.26559]
[1741937650461,13.98650828,1899.4,1899.1,1.25524396]
[1741937650629,13.98650828,1899.4,1899.0,6.0823]
[1741937651836,5.2651,1899.3,1899.0,0.8164]
[1741937652353,5.2651,1899.3,1899.0,6.08229]
[1741937652555,13.98650828,1899.4,1899.0,6.08229]
[1741937652755,19.25154828,1899.4,1899.0,6.08229]
[1741937652956,19.25154828,1899.4,1899.0,7.28931961]
[1741937653168,5.26513,1899.3,1899.0,7.28931961]
[1741937653333,10.53042,1899.3,1899.0,1.20702961]
[1741937653669,5.26542,1899.2,1898.9,0.7219561]
[1741937654669,5.26513,1899.3,1898.9,5.9880261]
[1741937654871,5.26513,1899.3,1898.9,11.2540961]
[1741937655074,5.26537,1899.2,1898.9,5.9880261]
[1741937656577,5.26513,1899.3,1898.9,5.9880261]
[1741937657469,0.8308,1899.1,1898.8,5.26646]
[1741937657770,3.80695828,1899.2,1898.6,6.08717]
[1741937657972,13.98800828,1899.0,1898.6,6.08717]
[1741937658179,4.915,1898.9,1898.6,5.26697]
[1741937658356,1.79486567,1898.7,1898.6,5.26697]
[1741937658554,1.79486567,1898.7,1898.6,6.929398]
[1741937658740,1.79486567,1898.7,1898.6,1.662428]
[1741937658942,6.04797,1898.6,1898.2,6.04442]
[1741937659249,1.79486567,1898.4,1898.2,6.04442]
[1741937659561,6.71286567,1898.5,1898.3,5.26772]
[1741937659766,4.918,1898.5,1898.4,5.26759]
[1741937659966,4.918,1898.5,1898.3,5.26772]
[1741937660142,6.71286567,1898.5,1898.4,0.526772]